[Event "Early-Titled-Tuesday-Blitz-February-06-2024"]
[Site "Chess.com"]
[Date "2024.02.06"]
[Round "6"]
[White "AlexeiShirov"]
[Black "TigrVShlyape"]
[Result "1/2-1/2"]
[WhiteElo "2786"]
[BlackElo "2963"]
[TimeControl "180+1"]
[EndTime "9:04:36 PST"]
[Termination "Game drawn by agreement"]

1. e4 {[%clk 0:03:00.9]} 1... c5 {[%clk 0:02:59.5]} 2. Nf3 {[%clk 0:03:00.3]}
2... e6 {[%clk 0:02:59.9]} 3. d4 {[%clk 0:02:58.6]} 3... cxd4 {[%clk 0:03:00.2]}
4. Nxd4 {[%clk 0:02:58.6]} 4... a6 {[%clk 0:03:00.8]} 5. c4 {[%clk 0:02:57.4]}
5... Nf6 {[%clk 0:03:00.4]} 6. Nc3 {[%clk 0:02:56.6]} 6... Bb4 {[%clk
0:02:59.8]} 7. Qd3 {[%clk 0:02:50.9]} 7... d5 {[%clk 0:02:57.7]} 8. exd5 {[%clk
0:02:50.2]} 8... exd5 {[%clk 0:02:57.5]} 9. Be2 {[%clk 0:02:49.9]} 9... O-O
{[%clk 0:02:57]} 10. O-O {[%clk 0:02:49.5]} 10... Nc6 {[%clk 0:02:56.4]} 11.
Nxc6 {[%clk 0:02:47.6]} 11... bxc6 {[%clk 0:02:56.2]} 12. cxd5 {[%clk 0:02:47]}
12... Nxd5 {[%clk 0:02:55.1]} 13. Nxd5 {[%clk 0:02:42.6]} 13... Qxd5 {[%clk
0:02:52.5]} 14. Qxd5 {[%clk 0:02:36.9]} 14... cxd5 {[%clk 0:02:52]} 15. Bf3
{[%clk 0:02:36]} 15... Be6 {[%clk 0:02:50.8]} 16. Rd1 {[%clk 0:02:35.7]} 16...
Rfd8 {[%clk 0:02:42.2]} 17. Be3 {[%clk 0:02:34.2]} 17... a5 {[%clk 0:02:11.1]}
18. Rac1 {[%clk 0:02:28.3]} 18... Be7 {[%clk 0:02:02.8]} 19. Bb6 {[%clk
0:02:19.9]} 19... Rdb8 {[%clk 0:01:54.9]} 20. Bd4 {[%clk 0:02:15.3]} 20... Bf6
{[%clk 0:01:45.4]} 21. Bxf6 {[%clk 0:02:11.1]} 21... gxf6 {[%clk 0:01:45.5]} 22.
Bxd5 {[%clk 0:02:07.9]} 22... Bxd5 {[%clk 0:01:44.8]} 23. Rxd5 {[%clk
0:02:04.8]} 23... Rxb2 {[%clk 0:01:45.1]} 24. h3 {[%clk 0:01:57.6]} 24... Rxa2
{[%clk 0:01:42.1]} 25. Rc7 {[%clk 0:01:53.6]} 25... a4 {[%clk 0:01:37.7]} 26.
Rdd7 {[%clk 0:01:52.4]} 26... Rf8 {[%clk 0:01:37.7]} 27. Ra7 {[%clk 0:01:51.8]}
27... a3 {[%clk 0:01:33]} 28. Rd3 {[%clk 0:01:50.6]} 28... Re8 {[%clk
0:01:28.9]} 29. Rdxa3 {[%clk 0:01:42.6]} 29... Rxa3 {[%clk 0:01:28.1]} 30. Rxa3
{[%clk 0:01:40.7]} 30... Re2 {[%clk 0:01:24.7]} 31. Rg3+ {[%clk 0:01:39.3]}
31... Kf8 {[%clk 0:01:24.2]} 1/2-1/2

[Event "Early-Titled-Tuesday-Blitz-February-06-2024"]
[Site "Chess.com"]
[Date "2024.02.06"]
[Round "6"]
[White "Adekrisna123"]
[Black "Maitreia"]
[Result "0-1"]
[WhiteElo "2548"]
[BlackElo "2752"]
[TimeControl "180+1"]
[EndTime "9:04:37 PST"]
[Termination "Maitreia won by resignation"]

1. d4 {[%clk 0:02:57.5]} 1... Nf6 {[%clk 0:02:59.7]} 2. Bf4 {[%clk 0:02:57.7]}
2... g6 {[%clk 0:02:59.8]} 3. Nc3 {[%clk 0:02:57.6]} 3... Bg7 {[%clk 0:03:00.3]}
4. e4 {[%clk 0:02:57.6]} 4... d6 {[%clk 0:03:00.9]} 5. Qd2 {[%clk 0:02:57.6]}
5... O-O {[%clk 0:03:01.5]} 6. O-O-O {[%clk 0:02:57.3]} 6... Nc6 {[%clk
0:03:02.1]} 7. Bh6 {[%clk 0:02:56.1]} 7... e5 {[%clk 0:03:00.9]} 8. Bxg7 {[%clk
0:02:55.9]} 8... Kxg7 {[%clk 0:03:00.6]} 9. Nge2 {[%clk 0:02:56.1]} 9... Re8
{[%clk 0:02:55.7]} 10. d5 {[%clk 0:02:50.4]} 10... Ne7 {[%clk 0:02:54.9]} 11. f3
{[%clk 0:02:50.3]} 11... h5 {[%clk 0:02:43]} 12. g3 {[%clk 0:02:48.6]} 12...
Neg8 {[%clk 0:02:39.8]} 13. Bg2 {[%clk 0:02:46.7]} 13... a6 {[%clk 0:02:32]} 14.
f4 {[%clk 0:02:36.7]} 14... Bg4 {[%clk 0:02:31.6]} 15. h3 {[%clk 0:02:35.7]}
15... Bxe2 {[%clk 0:02:31.4]} 16. Qxe2 {[%clk 0:02:35.4]} 16... b5 {[%clk
0:02:23.9]} 17. f5 {[%clk 0:02:31]} 17... b4 {[%clk 0:02:24]} 18. Na4 {[%clk
0:02:26.5]} 18... Qd7 {[%clk 0:02:22.4]} 19. b3 {[%clk 0:02:25.4]} 19... gxf5
{[%clk 0:02:16.1]} 20. exf5 {[%clk 0:02:25.2]} 20... Qxf5 {[%clk 0:02:17]} 21.
Rdf1 {[%clk 0:02:03.6]} 21... Qg5+ {[%clk 0:02:16.1]} 22. Kb2 {[%clk 0:02:03.4]}
22... Qxg3 {[%clk 0:02:14]} 23. Bf3 {[%clk 0:01:45.5]} 23... Kf8 {[%clk
0:02:12.9]} 24. Bxh5 {[%clk 0:01:44.7]} 24... e4 {[%clk 0:02:07]} 25. Rf5 {[%clk
0:01:44.1]} 25... Re5 {[%clk 0:02:04.7]} 26. Rhf1 {[%clk 0:01:43.7]} 26... Rxf5
{[%clk 0:01:53.9]} 27. Rxf5 {[%clk 0:01:43.5]} 27... Qxh3 {[%clk 0:01:54.4]} 28.
Qf1 {[%clk 0:01:11.8]} 28... Qxf1 {[%clk 0:01:47.3]} 0-1

[Event "Early-Titled-Tuesday-Blitz-February-06-2024"]
[Site "Chess.com"]
[Date "2024.02.06"]
[Round "6"]
[White "Cheer_Down"]
[Black "Martial2008"]
[Result "0-1"]
[WhiteElo "2512"]
[BlackElo "2684"]
[TimeControl "180+1"]
[EndTime "9:04:48 PST"]
[Termination "Martial2008 won by resignation"]

1. d4 {[%clk 0:03:00.9]} 1... Nf6 {[%clk 0:02:59.1]} 2. Nf3 {[%clk 0:03:00.1]}
2... e6 {[%clk 0:02:59.4]} 3. Bf4 {[%clk 0:02:57.6]} 3... c5 {[%clk 0:02:52.3]}
4. e3 {[%clk 0:02:54.8]} 4... cxd4 {[%clk 0:02:47.1]} 5. exd4 {[%clk 0:02:54.4]}
5... b6 {[%clk 0:02:47.7]} 6. Bd3 {[%clk 0:02:48.2]} 6... Bb7 {[%clk 0:02:42.9]}
7. O-O {[%clk 0:02:48.4]} 7... Be7 {[%clk 0:02:42.6]} 8. c4 {[%clk 0:02:47.8]}
8... O-O {[%clk 0:02:42.7]} 9. Nc3 {[%clk 0:02:47.2]} 9... d6 {[%clk 0:02:42.8]}
10. h3 {[%clk 0:02:37.4]} 10... Nbd7 {[%clk 0:02:42.1]} 11. b4 {[%clk
0:02:32.1]} 11... Rc8 {[%clk 0:02:39.9]} 12. Re1 {[%clk 0:02:25.5]} 12... Re8
{[%clk 0:02:39.7]} 13. a3 {[%clk 0:02:19]} 13... a6 {[%clk 0:02:33.9]} 14. Qd2
{[%clk 0:02:16.6]} 14... Rc7 {[%clk 0:02:33]} 15. c5 {[%clk 0:02:10.2]} 15...
bxc5 {[%clk 0:02:27.6]} 16. bxc5 {[%clk 0:02:08.4]} 16... dxc5 {[%clk
0:02:19.7]} 17. Bxc7 {[%clk 0:02:07.8]} 17... Qxc7 {[%clk 0:02:17.8]} 18. Ne4
{[%clk 0:01:58.5]} 18... cxd4 {[%clk 0:02:12.4]} 19. Nxd4 {[%clk 0:01:51.2]}
19... Rd8 {[%clk 0:02:11.3]} 20. Qe3 {[%clk 0:01:28.2]} 20... Ne5 {[%clk
0:02:06.7]} 21. Nxf6+ {[%clk 0:01:24.1]} 21... Bxf6 {[%clk 0:02:07.6]} 22. Be4
{[%clk 0:01:24.6]} 22... Bxe4 {[%clk 0:02:00]} 23. Qxe4 {[%clk 0:01:23.5]} 23...
Rxd4 {[%clk 0:02:00.5]} 24. Qxd4 {[%clk 0:01:19.2]} 24... Nf3+ {[%clk
0:01:59.7]} 25. gxf3 {[%clk 0:01:20.1]} 25... Bxd4 {[%clk 0:02:00.3]} 26. Rac1
{[%clk 0:01:20]} 26... Qb7 {[%clk 0:01:53.3]} 27. Rb1 {[%clk 0:01:12.3]} 27...
Qa7 {[%clk 0:01:52.9]} 0-1

[Event "Early-Titled-Tuesday-Blitz-February-06-2024"]
[Site "Chess.com"]
[Date "2024.02.06"]
[Round "6"]
[White "GMCorinnaKopff"]
[Black "blitzking1729"]
[Result "0-1"]
[WhiteElo "2379"]
[BlackElo "2743"]
[TimeControl "180+1"]
[EndTime "9:04:50 PST"]
[Termination "blitzking1729 won by resignation"]

1. e4 {[%clk 0:03:00.9]} 1... d6 {[%clk 0:02:58.1]} 2. d4 {[%clk 0:03:00.3]}
2... Nf6 {[%clk 0:02:58.6]} 3. Nc3 {[%clk 0:03:00.1]} 3... e5 {[%clk 0:02:59.3]}
4. Nge2 {[%clk 0:02:58.5]} 4... exd4 {[%clk 0:02:58.8]} 5. Nxd4 {[%clk
0:02:58.6]} 5... Be7 {[%clk 0:02:59.7]} 6. g3 {[%clk 0:02:58]} 6... O-O {[%clk
0:02:57.6]} 7. Bg2 {[%clk 0:02:58.1]} 7... Nc6 {[%clk 0:02:58.5]} 8. O-O {[%clk
0:02:57.4]} 8... Bg4 {[%clk 0:02:47.8]} 9. f3 {[%clk 0:02:51.7]} 9... Bd7 {[%clk
0:02:45.9]} 10. Be3 {[%clk 0:02:48.7]} 10... Re8 {[%clk 0:02:45.7]} 11. Qd2
{[%clk 0:02:47.9]} 11... Bf8 {[%clk 0:02:40.4]} 12. Rae1 {[%clk 0:02:45.5]}
12... h6 {[%clk 0:02:40.4]} 13. h3 {[%clk 0:02:39.5]} 13... Ne5 {[%clk
0:02:33.7]} 14. b3 {[%clk 0:02:34.1]} 14... c5 {[%clk 0:02:19.2]} 15. Nde2
{[%clk 0:02:24.5]} 15... Bc6 {[%clk 0:02:19.1]} 16. Nf4 {[%clk 0:02:13.5]} 16...
Ned7 {[%clk 0:02:05.9]} 17. Nfd5 {[%clk 0:02:10.1]} 17... b5 {[%clk 0:02:03.8]}
18. Nxf6+ {[%clk 0:01:29]} 18... Nxf6 {[%clk 0:02:01.4]} 19. Qf2 {[%clk
0:01:15.1]} 19... b4 {[%clk 0:01:59.5]} 20. Ne2 {[%clk 0:01:14.2]} 20... d5
{[%clk 0:01:58.7]} 21. Bxc5 {[%clk 0:01:06.5]} 21... dxe4 {[%clk 0:01:55.8]} 22.
Bxf8 {[%clk 0:01:06.3]} 22... e3 {[%clk 0:01:55.1]} 23. Qxe3 {[%clk 0:01:00.5]}
23... Rxe3 {[%clk 0:01:53.2]} 24. Bc5 {[%clk 0:01:01.4]} 24... Re8 {[%clk
0:01:51.4]} 25. Kh2 {[%clk 0:00:52.5]} 25... Qd2 {[%clk 0:01:48.1]} 26. Nd4
{[%clk 0:00:48.4]} 0-1

[Event "Early-Titled-Tuesday-Blitz-February-06-2024"]
[Site "Chess.com"]
[Date "2024.02.06"]
[Round "6"]
[White "Kunalm64"]
[Black "NewYearGirl"]
[Result "1-0"]
[WhiteElo "2567"]
[BlackElo "2349"]
[TimeControl "180+1"]
[EndTime "9:04:53 PST"]
[Termination "Kunalm64 won by resignation"]

1. e4 {[%clk 0:03:00.9]} 1... c5 {[%clk 0:03:00.1]} 2. Nf3 {[%clk 0:03:00.1]}
2... d6 {[%clk 0:03:00.1]} 3. Bb5+ {[%clk 0:02:58.1]} 3... Bd7 {[%clk
0:02:59.4]} 4. Bxd7+ {[%clk 0:02:57.9]} 4... Qxd7 {[%clk 0:03:00.3]} 5. c4
{[%clk 0:02:57.3]} 5... Nc6 {[%clk 0:02:59.7]} 6. d4 {[%clk 0:02:56.2]} 6...
cxd4 {[%clk 0:03:00]} 7. Nxd4 {[%clk 0:02:56.2]} 7... g6 {[%clk 0:02:58.5]} 8.
O-O {[%clk 0:02:54.2]} 8... Nxd4 {[%clk 0:02:56]} 9. Qxd4 {[%clk 0:02:53.8]}
9... Nf6 {[%clk 0:02:56.4]} 10. Nc3 {[%clk 0:02:50.2]} 10... Bg7 {[%clk
0:02:56.3]} 11. Be3 {[%clk 0:02:46.2]} 11... O-O {[%clk 0:02:54.4]} 12. Qd3
{[%clk 0:02:42.5]} 12... Ng4 {[%clk 0:02:48.4]} 13. Bd4 {[%clk 0:02:41]} 13...
Ne5 {[%clk 0:02:44.7]} 14. Bxe5 {[%clk 0:02:26.4]} 14... Bxe5 {[%clk 0:02:44.4]}
15. f4 {[%clk 0:02:19.1]} 15... Bxc3 {[%clk 0:02:40.5]} 16. Qxc3 {[%clk
0:02:18.8]} 16... Rac8 {[%clk 0:02:39.6]} 17. Qd3 {[%clk 0:02:17.2]} 17... Qc6
{[%clk 0:02:26.9]} 18. b3 {[%clk 0:02:16.1]} 18... a5 {[%clk 0:02:23.8]} 19. a4
{[%clk 0:02:14.5]} 19... Ra8 {[%clk 0:02:17.9]} 20. f5 {[%clk 0:02:10.9]} 20...
Ra6 {[%clk 0:02:17]} 21. f6 {[%clk 0:02:06.5]} 21... e6 {[%clk 0:02:03]} 22. Kh1
{[%clk 0:02:05.6]} 22... Rd8 {[%clk 0:01:57.1]} 23. Qe3 {[%clk 0:02:00.1]} 23...
Qe8 {[%clk 0:01:54.8]} 24. Rad1 {[%clk 0:01:56.4]} 24... d5 {[%clk 0:01:35.3]}
25. e5 {[%clk 0:01:43.6]} 25... h5 {[%clk 0:01:23.2]} 26. Rd4 {[%clk 0:01:38]}
26... dxc4 {[%clk 0:01:12.5]} 27. Qh6 {[%clk 0:01:35.2]} 1-0

[Event "Early-Titled-Tuesday-Blitz-February-06-2024"]
[Site "Chess.com"]
[Date "2024.02.06"]
[Round "6"]
[White "pavet"]
[Black "Salem-AR"]
[Result "0-1"]
[WhiteElo "2771"]
[BlackElo "2946"]
[TimeControl "180+1"]
[EndTime "9:04:55 PST"]
[Termination "Salem-AR won by resignation"]

1. e4 {[%clk 0:03:00.9]} 1... e5 {[%clk 0:02:59.7]} 2. Nf3 {[%clk 0:03:01.1]}
2... Nc6 {[%clk 0:03:00.4]} 3. Bc4 {[%clk 0:03:01.3]} 3... Nf6 {[%clk
0:02:59.7]} 4. d3 {[%clk 0:03:01.7]} 4... Bc5 {[%clk 0:03:00]} 5. O-O {[%clk
0:03:01.7]} 5... O-O {[%clk 0:03:00.7]} 6. Nc3 {[%clk 0:02:58]} 6... a6 {[%clk
0:02:59.1]} 7. Be3 {[%clk 0:02:57.7]} 7... Bxe3 {[%clk 0:02:50.2]} 8. fxe3
{[%clk 0:02:58.6]} 8... d6 {[%clk 0:02:50.7]} 9. Qe1 {[%clk 0:02:50.1]} 9... Na5
{[%clk 0:02:47.5]} 10. Bb3 {[%clk 0:02:50]} 10... c6 {[%clk 0:02:43.7]} 11. Nh4
{[%clk 0:02:48.8]} 11... Nxb3 {[%clk 0:02:33.2]} 12. axb3 {[%clk 0:02:48.7]}
12... d5 {[%clk 0:02:33.6]} 13. exd5 {[%clk 0:02:45.9]} 13... cxd5 {[%clk
0:02:33.6]} 14. e4 {[%clk 0:02:41.6]} 14... d4 {[%clk 0:02:20.2]} 15. Nd1 {[%clk
0:02:41.3]} 15... Be6 {[%clk 0:02:15.5]} 16. Qg3 {[%clk 0:02:29.6]} 16... Nh5
{[%clk 0:02:09.5]} 17. Qf2 {[%clk 0:02:28.2]} 17... Nf4 {[%clk 0:02:05.7]} 18.
Kh1 {[%clk 0:02:24.7]} 18... Rc8 {[%clk 0:02:05.1]} 19. g3 {[%clk 0:02:23.6]}
19... Nh3 {[%clk 0:01:58.7]} 20. Qg2 {[%clk 0:02:22.8]} 20... Ng5 {[%clk
0:01:58.6]} 21. Qd2 {[%clk 0:02:10]} 21... Bh3 {[%clk 0:01:54.6]} 22. Re1 {[%clk
0:02:02.6]} 22... Qf6 {[%clk 0:01:53.6]} 23. Nf2 {[%clk 0:01:51.4]} 23... Nf3
{[%clk 0:01:52.8]} 24. Qe2 {[%clk 0:01:45.5]} 24... Nxe1 {[%clk 0:01:50.5]} 25.
Rxe1 {[%clk 0:01:41.7]} 25... Bd7 {[%clk 0:01:48.6]} 26. Rf1 {[%clk 0:01:41.2]}
26... Qc6 {[%clk 0:01:44.7]} 27. Rc1 {[%clk 0:01:36.4]} 27... f5 {[%clk
0:01:38]} 28. Kg1 {[%clk 0:01:34.9]} 28... f4 {[%clk 0:01:38.3]} 29. Nf3 {[%clk
0:01:30.5]} 29... fxg3 {[%clk 0:01:27.1]} 30. hxg3 {[%clk 0:01:31.4]} 30... Qh6
{[%clk 0:01:27.4]} 31. Rf1 {[%clk 0:01:28.2]} 31... Qe3 {[%clk 0:01:24.2]} 0-1

[Event "Early-Titled-Tuesday-Blitz-February-06-2024"]
[Site "Chess.com"]
[Date "2024.02.06"]
[Round "6"]
[White "Capiberibe"]
[Black "LaPiToB"]
[Result "0-1"]
[WhiteElo "2094"]
[BlackElo "2308"]
[TimeControl "180+1"]
[EndTime "9:04:57 PST"]
[Termination "LaPiToB won by resignation"]

1. e4 {[%clk 0:03:00.9]} 1... c6 {[%clk 0:02:59.1]} 2. d4 {[%clk 0:02:59.6]}
2... d5 {[%clk 0:02:59.2]} 3. Nd2 {[%clk 0:03:00.1]} 3... dxe4 {[%clk
0:02:59.4]} 4. Nxe4 {[%clk 0:03:00.6]} 4... Nf6 {[%clk 0:02:59.5]} 5. Nxf6+
{[%clk 0:03:00.6]} 5... exf6 {[%clk 0:03:00.4]} 6. c3 {[%clk 0:03:00.6]} 6...
Bd6 {[%clk 0:03:00.5]} 7. Bd3 {[%clk 0:03:01]} 7... O-O {[%clk 0:03:00.4]} 8.
Qc2 {[%clk 0:03:01]} 8... Re8+ {[%clk 0:03:00.9]} 9. Ne2 {[%clk 0:03:01]} 9...
h5 {[%clk 0:03:01.6]} 10. Be3 {[%clk 0:03:00.3]} 10... Nd7 {[%clk 0:02:57.4]}
11. O-O-O {[%clk 0:03:00.2]} 11... Nf8 {[%clk 0:02:55.5]} 12. Kb1 {[%clk
0:03:00.2]} 12... Be6 {[%clk 0:02:54.7]} 13. h3 {[%clk 0:02:59.3]} 13... Bd5
{[%clk 0:02:47.6]} 14. Nf4 {[%clk 0:02:52.4]} 14... Bxf4 {[%clk 0:02:24.3]} 15.
Bxf4 {[%clk 0:02:50.3]} 15... Bxg2 {[%clk 0:02:24.4]} 16. Rhg1 {[%clk
0:02:41.5]} 16... Qd5 {[%clk 0:02:17]} 17. Bf1 {[%clk 0:02:25.2]} 17... Be4
{[%clk 0:02:12]} 18. Bd3 {[%clk 0:02:25.2]} 18... Bxd3 {[%clk 0:02:11.9]} 19.
Qxd3 {[%clk 0:02:24.2]} 19... Qe4 {[%clk 0:02:11.5]} 20. Bh6 {[%clk 0:02:21.8]}
20... g6 {[%clk 0:02:05.9]} 21. Bxf8 {[%clk 0:02:21.5]} 21... Kxf8 {[%clk
0:02:04.7]} 22. Qxe4 {[%clk 0:02:08.4]} 22... Rxe4 {[%clk 0:02:05.6]} 23. Rd2
{[%clk 0:02:07.4]} 23... Rae8 {[%clk 0:02:04.2]} 24. Rg3 {[%clk 0:02:05.7]}
24... Re1+ {[%clk 0:01:59.7]} 25. Kc2 {[%clk 0:02:05.5]} 25... Rh1 {[%clk
0:01:59.7]} 26. Rf3 {[%clk 0:02:03.3]} 26... f5 {[%clk 0:01:58.9]} 27. Kd3
{[%clk 0:02:00.5]} 27... Ree1 {[%clk 0:01:58.5]} 28. c4 {[%clk 0:01:55.7]} 28...
Ke7 {[%clk 0:01:49.2]} 29. d5 {[%clk 0:01:44.1]} 29... cxd5 {[%clk 0:01:48.3]}
30. cxd5 {[%clk 0:01:45]} 30... Kd6 {[%clk 0:01:47.9]} 31. Kd4 {[%clk 0:01:45]}
31... Re4+ {[%clk 0:01:47.2]} 32. Kc3 {[%clk 0:01:41.9]} 32... Rc1+ {[%clk
0:01:46]} 33. Kb3 {[%clk 0:01:41.5]} 33... Rc5 {[%clk 0:01:40.8]} 34. Rfd3
{[%clk 0:01:41]} 34... a5 {[%clk 0:01:36.5]} 35. a3 {[%clk 0:01:39.9]} 35... b5
{[%clk 0:01:35.5]} 36. Ka2 {[%clk 0:01:39.9]} 36... Re5 {[%clk 0:01:33.8]} 37.
b4 {[%clk 0:01:27.6]} 37... axb4 {[%clk 0:01:31.4]} 38. axb4 {[%clk 0:01:27.4]}
38... Rcxd5 {[%clk 0:01:31.5]} 0-1

[Event "Early-Titled-Tuesday-Blitz-February-06-2024"]
[Site "Chess.com"]
[Date "2024.02.06"]
[Round "6"]
[White "Ural_bogatyr"]
[Black "Cubitas"]
[Result "1-0"]
[WhiteElo "2558"]
[BlackElo "2709"]
[TimeControl "180+1"]
[EndTime "9:05:00 PST"]
[Termination "Ural_bogatyr won by resignation"]

1. d4 {[%clk 0:03:00.9]} 1... Nf6 {[%clk 0:02:59.4]} 2. Nc3 {[%clk 0:03:00.7]}
2... g6 {[%clk 0:03:00.1]} 3. e4 {[%clk 0:03:00.7]} 3... d6 {[%clk 0:03:00.2]}
4. Nf3 {[%clk 0:03:00.3]} 4... Bg7 {[%clk 0:02:59.9]} 5. Be3 {[%clk 0:03:00.9]}
5... O-O {[%clk 0:02:57.5]} 6. Qd2 {[%clk 0:02:59.2]} 6... Ng4 {[%clk
0:02:56.1]} 7. Bg5 {[%clk 0:02:58.8]} 7... h6 {[%clk 0:02:54.5]} 8. Bh4 {[%clk
0:02:58.9]} 8... g5 {[%clk 0:02:55.1]} 9. Bg3 {[%clk 0:02:58.9]} 9... f5 {[%clk
0:02:55.8]} 10. exf5 {[%clk 0:02:57.3]} 10... Bxf5 {[%clk 0:02:56.7]} 11. h4
{[%clk 0:02:54.4]} 11... gxh4 {[%clk 0:02:44.5]} 12. Bc4+ {[%clk 0:02:43.3]}
12... d5 {[%clk 0:02:32.4]} 13. Bxd5+ {[%clk 0:02:38.4]} 13... e6 {[%clk
0:02:32.8]} 14. Bxh4 {[%clk 0:02:38.4]} 14... Qc8 {[%clk 0:02:19.4]} 15. Bc4
{[%clk 0:02:26.8]} 15... c5 {[%clk 0:02:18.4]} 16. d5 {[%clk 0:02:22.8]} 16...
a6 {[%clk 0:02:11.9]} 17. a4 {[%clk 0:02:10.4]} 17... Qe8 {[%clk 0:01:56.3]} 18.
O-O {[%clk 0:01:54.5]} 18... e5 {[%clk 0:01:48.4]} 19. Rae1 {[%clk 0:01:43.1]}
19... e4 {[%clk 0:01:47.7]} 20. Bg3 {[%clk 0:01:37.6]} 20... Qh5 {[%clk
0:01:33.4]} 21. Nh4 {[%clk 0:01:25.7]} 21... Nd7 {[%clk 0:01:06.4]} 22. Nxe4
{[%clk 0:01:20.8]} 22... Qg6 {[%clk 0:01:02.9]} 23. Nxg6 {[%clk 0:01:19.3]} 1-0

[Event "Early-Titled-Tuesday-Blitz-February-06-2024"]
[Site "Chess.com"]
[Date "2024.02.06"]
[Round "6"]
[White "cristiano78"]
[Black "maurovargas01"]
[Result "1-0"]
[WhiteElo "2274"]
[BlackElo "1890"]
[TimeControl "180+1"]
[EndTime "9:05:07 PST"]
[Termination "cristiano78 won by checkmate"]

1. d4 {[%clk 0:02:59.7]} 1... d5 {[%clk 0:02:59.6]} 2. c4 {[%clk 0:02:59.2]}
2... c6 {[%clk 0:02:59.8]} 3. Nf3 {[%clk 0:02:59.3]} 3... e6 {[%clk 0:03:00]} 4.
Nc3 {[%clk 0:02:58.2]} 4... dxc4 {[%clk 0:03:00]} 5. a4 {[%clk 0:02:57.4]} 5...
Bb4 {[%clk 0:02:59.5]} 6. e3 {[%clk 0:02:56.2]} 6... b5 {[%clk 0:02:59]} 7. Bd2
{[%clk 0:02:55.8]} 7... Bxc3 {[%clk 0:02:58.5]} 8. Bxc3 {[%clk 0:02:54.4]} 8...
a6 {[%clk 0:02:57.3]} 9. b3 {[%clk 0:02:52.4]} 9... a5 {[%clk 0:02:47.4]} 10.
axb5 {[%clk 0:02:49.1]} 10... cxb5 {[%clk 0:02:43.2]} 11. bxc4 {[%clk
0:02:48.8]} 11... bxc4 {[%clk 0:02:26.1]} 12. Bxc4 {[%clk 0:02:44.2]} 12... Bb7
{[%clk 0:02:25.8]} 13. O-O {[%clk 0:02:41.4]} 13... Nf6 {[%clk 0:02:23.1]} 14.
Bb5+ {[%clk 0:02:40.8]} 14... Nbd7 {[%clk 0:02:21.6]} 15. Qa4 {[%clk 0:02:41.7]}
15... O-O {[%clk 0:02:20]} 16. Bxa5 {[%clk 0:02:38.3]} 16... Qb8 {[%clk
0:02:09.1]} 17. Bxd7 {[%clk 0:02:35.8]} 17... Rxa5 {[%clk 0:01:54.8]} 18. Qxa5
{[%clk 0:02:33.1]} 18... Nxd7 {[%clk 0:01:54.6]} 19. Rfb1 {[%clk 0:02:32.6]}
19... Rc8 {[%clk 0:01:47.3]} 20. Rb2 {[%clk 0:02:22.1]} 20... Qc7 {[%clk
0:01:15.5]} 21. Qxc7 {[%clk 0:02:20.1]} 21... Rxc7 {[%clk 0:01:15.3]} 22. Ne5
{[%clk 0:02:13.5]} 22... f6 {[%clk 0:00:48.8]} 23. Nxd7 {[%clk 0:02:12.1]} 23...
Rxd7 {[%clk 0:00:48.7]} 24. Ra7 {[%clk 0:02:10.7]} 24... Rc7 {[%clk 0:00:48.2]}
25. Rb1 {[%clk 0:02:01.2]} 25... Be4 {[%clk 0:00:39.3]} 26. Rb8+ {[%clk
0:01:56.9]} 26... Rc8 {[%clk 0:00:28.3]} 27. Rxc8# {[%clk 0:01:56]} 1-0

[Event "Early-Titled-Tuesday-Blitz-February-06-2024"]
[Site "Chess.com"]
[Date "2024.02.06"]
[Round "6"]
[White "Qingdom"]
[Black "iJueles"]
[Result "0-1"]
[WhiteElo "2130"]
[BlackElo "2450"]
[TimeControl "180+1"]
[EndTime "9:05:08 PST"]
[Termination "iJueles won by resignation"]

1. d4 {[%clk 0:03:00.9]} 1... Nf6 {[%clk 0:02:58.8]} 2. Bg5 {[%clk 0:03:00.1]}
2... d5 {[%clk 0:02:54.4]} 3. e3 {[%clk 0:02:59.7]} 3... Ne4 {[%clk 0:02:51.5]}
4. Bf4 {[%clk 0:02:59.5]} 4... c5 {[%clk 0:02:52]} 5. Bd3 {[%clk 0:02:57.4]}
5... cxd4 {[%clk 0:02:40.7]} 6. exd4 {[%clk 0:02:57.2]} 6... Nf6 {[%clk
0:02:31.7]} 7. Nd2 {[%clk 0:02:54.6]} 7... Nc6 {[%clk 0:02:31.5]} 8. c3 {[%clk
0:02:54.1]} 8... Bg4 {[%clk 0:02:30.7]} 9. Qb3 {[%clk 0:02:53.1]} 9... Qd7
{[%clk 0:02:29.3]} 10. h3 {[%clk 0:02:52.5]} 10... Bh5 {[%clk 0:02:29.4]} 11.
Ngf3 {[%clk 0:02:51.1]} 11... e6 {[%clk 0:02:24.4]} 12. Ne5 {[%clk 0:02:45.6]}
12... Qc8 {[%clk 0:02:24.1]} 13. Qa4 {[%clk 0:02:35.4]} 13... Nd7 {[%clk
0:02:23.3]} 14. Nxc6 {[%clk 0:02:32]} 14... bxc6 {[%clk 0:02:22.4]} 15. b4
{[%clk 0:02:31.4]} 15... Nb6 {[%clk 0:02:20]} 16. Qa6 {[%clk 0:02:28.2]} 16...
Kd7 {[%clk 0:01:50.1]} 17. a4 {[%clk 0:02:21.5]} 17... Bg6 {[%clk 0:01:46.2]}
18. Qxc8+ {[%clk 0:02:15.9]} 18... Nxc8 {[%clk 0:01:45.7]} 19. Ba6 {[%clk
0:02:15.5]} 19... Bd6 {[%clk 0:01:41.8]} 20. Bxd6 {[%clk 0:02:14.3]} 20... Nxd6
{[%clk 0:01:41.5]} 21. a5 {[%clk 0:02:14.9]} 21... Rab8 {[%clk 0:01:40.9]} 22.
Ke2 {[%clk 0:02:13.3]} 22... Rhe8 {[%clk 0:01:39.7]} 23. f4 {[%clk 0:02:12.6]}
23... f6 {[%clk 0:01:39.7]} 24. Nf3 {[%clk 0:02:09.2]} 24... Be4 {[%clk
0:01:37.5]} 25. Kf2 {[%clk 0:01:56.8]} 25... Bg6 {[%clk 0:01:29.5]} 26. Nd2
{[%clk 0:01:49.6]} 26... e5 {[%clk 0:01:26.4]} 27. fxe5 {[%clk 0:01:49.4]} 27...
fxe5 {[%clk 0:01:27.3]} 28. dxe5 {[%clk 0:01:48.9]} 28... Rxe5 {[%clk
0:01:28.2]} 29. Rhe1 {[%clk 0:01:48.8]} 29... Rf8+ {[%clk 0:01:28.4]} 30. Kg1
{[%clk 0:01:48.9]} 30... Rg5 {[%clk 0:01:27.1]} 31. Re2 {[%clk 0:01:41.3]} 31...
Ne4 {[%clk 0:01:16.3]} 32. Nxe4 {[%clk 0:01:40.8]} 32... Bxe4 {[%clk 0:01:17.2]}
33. Rf1 {[%clk 0:01:39.4]} 33... Rxf1+ {[%clk 0:01:14.9]} 34. Kxf1 {[%clk
0:01:39.2]} 34... Rg3 {[%clk 0:01:14.9]} 35. c4 {[%clk 0:01:36.6]} 35... Bd3
{[%clk 0:01:15.1]} 36. cxd5 {[%clk 0:01:36.5]} 36... Bxa6 {[%clk 0:01:15.3]} 37.
dxc6+ {[%clk 0:01:36.9]} 37... Kxc6 {[%clk 0:01:15.7]} 38. Kf2 {[%clk
0:01:37.4]} 38... Rxg2+ {[%clk 0:01:14.1]} 39. Kxg2 {[%clk 0:01:37.8]} 39...
Bxe2 {[%clk 0:01:15]} 40. Kf2 {[%clk 0:01:36.9]} 40... Bh5 {[%clk 0:01:15.2]}
41. Ke3 {[%clk 0:01:36.4]} 41... Kb5 {[%clk 0:01:15.6]} 0-1